fUST/lending_fUST_20240826
["ID","MTS","AMOUNT","RATE_DAILY","PERIOD"]
[335970006,1724646651665,-500.0,0.00012591,2]
[335970007,1724646651676,-500.0,0.00012591,2]
[335970008,1724646651686,-500.0,0.00012591,2]
[335970009,1724646651697,-827.04,0.00012591,2]
[335970010,1724646651707,-500.0,0.00012591,2]
[335970011,1724646651719,-500.0,0.00012591,2]
[335970012,1724646651730,-500.0,0.00012591,2]
[335970013,1724646651743,-500.0,0.00012591,2]
[335970014,1724646651754,-500.0,0.00012591,2]
[335970015,1724646651764,-589.24,0.00012591,2]
[335970016,1724646651775,-500.0,0.00012591,2]
[335970017,1724646651785,-500.0,0.00012591,2]
[335970018,1724646651795,-500.0,0.00012591,2]
[335970019,1724646651805,-500.0,0.00012591,2]
[335970020,1724646651817,-1072.58,0.00012591,2]
[335970021,1724646651830,-500.0,0.00012591,2]
[335970022,1724646651842,-500.0,0.00012591,2]
[335970023,1724646651853,-500.0,0.00012591,2]
[335970024,1724646651864,-500.0,0.00012591,2]
[335970025,1724646651877,-877.51,0.00012591,2]
[335970026,1724646651889,-545.0532036,0.00012591,2]
[335970027,1724646651901,-920.91,0.00012591,2]
[335970028,1724646651913,-946.47,0.00012591,2]
[335970029,1724646652210,-500.0,0.00012591,2]
[335970030,1724646652220,-500.0,0.00012591,2]
[335970031,1724646652229,-500.0,0.00012591,2]
[335970032,1724646652239,-500.0,0.00012591,2]
[335970033,1724646652248,-1091.77,0.00012591,2]
[335970034,1724646652260,-653.56,0.00012591,2]
[335970035,1724646652270,-500.0,0.00012591,2]
[335970036,1724646652279,-500.0,0.00012591,2]
[335970037,1724646652288,-697.05,0.00012591,2]
[335970038,1724646652298,-572.21,0.00012591,2]
[335970039,1724646652308,-576.11,0.00012591,2]
[335970040,1724646652319,-500.0,0.00012591,2]
[335970041,1724646652331,-905.79,0.00012591,2]
[335970042,1724646652343,-500.0,0.00012591,2]
[335970043,1724646652352,-500.0,0.00012591,2]
[335970044,1724646652362,-500.0,0.00012591,2]
[335970045,1724646652371,-500.0,0.00012591,2]
[335970046,1724646652380,-567.32,0.00012591,2]
[335970047,1724646652389,-500.0,0.00012591,2]
[335970048,1724646652399,-1003.83,0.00012591,2]
[335970049,1724646652409,-500.0,0.00012591,2]
[335970050,1724646652420,-500.0,0.00012591,2]
[335970051,1724646652430,-515.68,0.00012591,2]
[335970052,1724646652441,-606.23,0.00012591,2]
[335970053,1724646652451,-563.67,0.00012591,2]
[335970054,1724646652463,-500.0,0.00012591,2]
[335970055,1724646652472,-500.0,0.00012591,2]
[335970056,1724646652482,-500.0,0.00012591,2]
[335970057,1724646652492,-500.0,0.00012591,2]
[335970058,1724646652501,-791.47,0.00012591,2]
[335970059,1724646652511,-500.0,0.00012591,2]
[335970060,1724646652520,-500.0,0.00012591,2]
[335970061,1724646652530,-575.2,0.00012591,2]
[335970062,1724646652539,-500.0,0.00012591,2]
[335970063,1724646652549,-500.0,0.00012591,2]
[335970064,1724646652558,-500.0,0.00012591,2]
[335970065,1724646652568,-500.0,0.00012591,2]
[335970066,1724646652577,-532.66,0.00012591,2]
[335970067,1724646652587,-500.0,0.00012591,2]
[335970068,1724646652596,-609.85291189,0.00012591,2]
[335970069,1724646652605,-500.0,0.00012591,2]
[335970070,1724646652615,-500.0,0.00012591,2]
[335970071,1724646652624,-181.57135356,0.00012591,2]
[335970072,1724646652634,-500.0,0.00012591,2]
[335970073,1724646652643,-524.51,0.00012591,2]
[335970074,1724646652654,-500.0,0.00012591,2]
[335970075,1724646652665,-500.0,0.00012591,2]
[335970076,1724646652674,-500.0,0.00012591,2]
[335970077,1724646652685,-708.48,0.00012591,2]
[335970078,1724646652695,-500.0,0.00012591,2]
[335970079,1724646652704,-500.0,0.00012591,2]
[335970080,1724646652714,-500.0,0.00012591,2]
[335970081,1724646652723,-500.0,0.00012591,2]
[335970082,1724646652735,-628.31,0.00012591,2]
[335970083,1724646652745,-162.21700301,0.00012591,2]
[335970084,1724646652754,-9273.69,0.00012591,2]
[335970085,1724646652764,-500.0,0.00012591,2]
[335970086,1724646652773,-500.0,0.00012591,2]
[335970087,1724646652783,-500.0,0.00012591,2]
[335970088,1724646652792,-382.98761858,0.00012591,2]
[335970089,1724646652801,-993.0,0.00012591,2]
[335970090,1724646652810,-659.96,0.00012591,2]
[335970091,1724646652822,-500.0,0.00012591,2]
[335970092,1724646652833,-500.0,0.00012591,2]
[335970093,1724646652844,-500.0,0.00012591,2]
[335970094,1724646652856,-633.96,0.00012591,2]
[335970095,1724646652865,-500.0,0.00012591,2]
[335970096,1724646652874,-500.0,0.00012591,2]
[335970097,1724646652883,-500.0,0.00012591,2]
[335970098,1724646652893,-500.0,0.00012591,2]
[335970099,1724646652902,-809.43,0.00012591,2]
[335970100,1724646652911,-600.68,0.00012591,2]
[335970101,1724646652920,-500.0,0.00012591,2]
[335970102,1724646652929,-500.0,0.00012591,2]
[335970103,1724646652939,-500.0,0.00012591,2]
[335970104,1724646652949,-500.0,0.00012591,2]
[335970105,1724646652961,-500.0,0.00012591,2]
[335970106,1724646652971,-500.0,0.00012591,2]
[335970107,1724646652980,-500.0,0.00012591,2]
[335970108,1724646652989,-500.0,0.00012591,2]
[335970109,1724646652999,-575.14,0.00012591,2]
[335970110,1724646653008,-500.0,0.00012591,2]
[335970111,1724646653017,-513.18,0.00012591,2]
[335970112,1724646653026,-609.40391507,0.00012591,2]
[335970113,1724646653035,-500.0,0.00012591,2]
[335970114,1724646653045,-695.79,0.00012591,2]
[335970115,1724646653054,-500.0,0.00012591,2]
[335970116,1724646653063,-630.16,0.00012591,2]
[335970117,1724646653073,-714.07,0.00012591,2]
[335970118,1724646653082,-500.0,0.00012591,2]
[335970119,1724646653091,-500.0,0.00012591,2]
[335970120,1724646653101,-500.0,0.00012591,2]
[335970121,1724646653111,-522.39,0.00012591,2]
[335970122,1724646653120,-500.0,0.00012591,2]
[335970123,1724646653130,-500.0,0.00012591,2]
[335970124,1724646653140,-500.0,0.00012591,2]
[335970125,1724646653149,-789.97,0.00012591,2]
[335970126,1724646653159,-500.0,0.00012591,2]
[335970127,1724646653168,-773.7,0.00012591,2]
[335970128,1724646653177,-500.0,0.00012591,2]
[335970129,1724646653186,-500.0,0.00012591,2]
[335970130,1724646653196,-230.8358558,0.00012591,2]
[335970131,1724646653205,-1062.92,0.00012591,2]
[335970132,1724646653215,-678.93,0.00012591,2]
[335970133,1724646653224,-500.0,0.00012591,2]
[335970134,1724646653233,-500.0,0.00012591,2]
[335970135,1724646653244,-500.0,0.00012591,2]
[335970136,1724646653255,-558.88,0.00012591,2]
[335970137,1724646653266,-500.0,0.00012591,2]
[335970138,1724646653277,-500.0,0.00012591,2]
[335970139,1724646653286,-679.36,0.00012591,2]
[335970140,1724646653296,-500.0,0.00012591,2]
[335970141,1724646653306,-683.58,0.00012591,2]
[335970142,1724646653318,-516.57926988,0.00012591,2]
[335970143,1724646653329,-500.0,0.00012591,2]
[335970144,1724646653341,-649.51,0.00012591,2]
[335970145,1724646653351,-500.0,0.00012591,2]
[335970146,1724646653361,-619.49,0.00012591,2]
[335970147,1724646653371,-500.0,0.00012591,2]
[335970148,1724646653381,-500.0,0.00012591,2]
[335970149,1724646653390,-792.19,0.00012591,2]
[335970150,1724646653400,-573.33,0.00012591,2]
[335970151,1724646653410,-500.0,0.00012592,2]
[335970152,1724646653419,-500.0,0.00012592,2]
[335970153,1724646653429,-500.0,0.00012592,2]
[335970154,1724646653440,-500.0,0.00012592,2]
[335970155,1724646653450,-968.41,0.00012592,2]
[335970156,1724646653459,-500.0,0.00012592,2]
[335970157,1724646653468,-500.0,0.00012592,2]
[335970158,1724646653478,-915.52,0.00012592,2]
[335970159,1724646653488,-500.0,0.00012592,2]
[335970160,1724646653498,-977.65,0.00012592,2]
[335970161,1724646653507,-1048.68,0.00012592,2]
[335970162,1724646653517,-703.16,0.00012592,2]
[335970163,1724646653526,-906.87,0.00012592,2]
[335970164,1724646653536,-632.65,0.00012592,2]
[335970165,1724646653546,-768.6,0.00012592,2]
[335970166,1724646653555,-500.0,0.00012592,2]
[335970167,1724646653565,-500.0,0.00012592,2]
[335970168,1724646653575,-391.8876787,0.00012592,2]
[335970169,1724646653584,-843.84,0.00012592,2]
[335970170,1724646653594,-594.64,0.00012592,2]
[335970171,1724646653604,-901.46,0.00012592,2]
[335970172,1724646653614,-718.19,0.00012592,2]
[335970173,1724646653623,-500.0,0.00012592,2]
[335970174,1724646653632,-500.0,0.00012592,2]
[335970175,1724646653641,-500.0,0.00012592,2]
[335970176,1724646653652,-500.0,0.00012592,2]
[335970177,1724646653665,-706.06,0.00012592,2]
[335970178,1724646653674,-370.258664,0.00012592,2]
[335970179,1724646653684,-370.258664,0.00012592,2]
[335970180,1724646653694,-611.77,0.00012592,2]
[335970181,1724646653704,-500.0,0.00012592,2]
[335970182,1724646653714,-675.98,0.00012592,2]
[335970183,1724646653723,-500.0,0.00012592,2]
[335970184,1724646653734,-1003.11,0.00012592,2]
[335970185,1724646653744,-537.61,0.00012592,2]
[335970186,1724646653754,-914.28,0.00012592,2]
[335970187,1724646653763,-685.21,0.00012592,2]
[335970188,1724646653772,-1010.97,0.00012592,2]
[335970189,1724646653782,-500.0,0.00012592,2]
[335970190,1724646653791,-583.76,0.00012592,2]
[335970191,1724646653801,-500.0,0.00012592,2]
[335970192,1724646653810,-500.0,0.00012592,2]
[335970193,1724646653820,-568.72,0.00012592,2]
[335970194,1724646653829,-669.84,0.00012592,2]
[335970195,1724646653840,-905.44,0.00012592,2]
[335970196,1724646653849,-500.0,0.00012592,2]
[335970197,1724646653859,-702.73,0.00012612,2]
[335970198,1724646653870,-500.0,0.00012612,2]
[335970199,1724646653880,-500.0,0.00012612,2]
[335970200,1724646653889,-500.0,0.00012612,2]
[335970201,1724646653899,-635.74,0.00012612,2]
[335970202,1724646653909,-500.0,0.00012612,2]
[335970203,1724646653918,-500.0,0.00012612,2]
[335970204,1724646653927,-500.0,0.00012612,2]
[335970205,1724646653936,-595.95,0.00012612,2]
[335970206,1724646653945,-575.94,0.00012612,2]
[335970207,1724646653955,-500.0,0.00012612,2]
[335970208,1724646653964,-950.07,0.00012612,2]
[335970209,1724646653973,-500.0,0.00012612,2]
[335970210,1724646653983,-592.77987138,0.00012612,2]
[335970211,1724646653992,-500.0,0.00012612,2]
[335970212,1724646654001,-543.28,0.00012612,2]
[335970213,1724646654011,-500.0,0.00012612,2]
[335970214,1724646654020,-500.0,0.00012612,2]
[335970215,1724646654029,-551.15,0.00012612,2]
[335970216,1724646654039,-500.0,0.00012612,2]
[335970217,1724646654049,-490.97913741,0.00012612,2]
[335970218,1724646654058,-500.0,0.00012612,2]
[335970219,1724646654067,-673.82,0.00012612,2]
[335970220,1724646654077,-1060.33,0.00012612,2]
[335970221,1724646654086,-500.0,0.00012612,2]
[335970222,1724646654097,-735.6,0.00012612,2]
[335970223,1724646654107,-548.59,0.00012612,2]
[335970224,1724646654118,-543.87,0.00012612,2]
[335970225,1724646654129,-638.59,0.00012612,2]
[335970226,1724646654140,-517.93,0.00012612,2]
[335970227,1724646654150,-695.67,0.00012612,2]
[335970228,1724646654161,-500.0,0.00012612,2]
[335970229,1724646654171,-500.0,0.00012612,2]
[335970230,1724646654180,-500.0,0.00012612,2]
[335970231,1724646654190,-500.0,0.00012612,2]
[335970232,1724646654199,-500.0,0.00012612,2]
[335970233,1724646654209,-151.0,0.00012612,2]
[335970234,1724646654222,-151.0,0.00012612,2]
[335970235,1724646654234,-1000.0,0.00012621,2]
[335970236,1724646654246,-500.0,0.00012699,2]
[335970237,1724646654255,-470.29,0.00012699,2]
[335970238,1724646654265,-500.0,0.00012699,2]
[335970239,1724646654275,-500.0,0.00012699,2]
[335970240,1724646654285,-500.0,0.00012699,2]
[335970241,1724646654294,-500.0,0.00012699,2]
[335970242,1724646654304,-500.0,0.00012699,2]
[335970243,1724646654314,-500.0,0.00012699,2]
[335970244,1724646654323,-500.0,0.00012699,2]
[335970245,1724646654333,-500.0,0.00012699,2]
[335970246,1724646654344,-500.0,0.00012699,2]
[335970247,1724646654357,-500.0,0.00012699,2]
[335970248,1724646654368,-500.0,0.00012699,2]
[335970249,1724646654377,-500.0,0.00012699,2]
[335970250,1724646654386,-500.0,0.00012699,2]
[335970251,1724646654396,-500.0,0.00012699,2]
[335970252,1724646654406,-500.0,0.00012699,2]
[335970253,1724646654415,-500.0,0.00012699,2]
[335970254,1724646654425,-500.0,0.00012699,2]
[335970255,1724646654436,-500.0,0.00012699,2]
[335970256,1724646654446,-500.0,0.00012699,2]
[335970257,1724646654457,-500.0,0.00012699,2]
[335970258,1724646654468,-500.0,0.00012699,2]
[335970259,1724646654477,-500.0,0.00012699,2]
[335970260,1724646654487,-326.22,0.00012699,2]
[335970261,1724646654496,-364.9487531,0.0001274,2]
[335970262,1724646654506,-2144.32657805,0.00012779,2]
[335970263,1724646654516,-500.0,0.00012844,2]
[335970264,1724646654528,-728.14,0.00012844,2]
[335970265,1724646654544,-649.84,0.00012844,2]
[335970266,1724646654607,-1059.92669404,0.0001285,2]
[335970267,1724646654616,-501.39,0.00012854,2]
[335970268,1724646654625,-10839.27,0.00012854,2]
[335970269,1724646654637,-2903.21,0.00012854,2]
[335970270,1724646654647,-820.78,0.00012854,2]
[335970271,1724646654662,-500.0,0.00012854,2]
[335970272,1724646654672,-1274.77,0.00012854,2]
[335970273,1724646654680,-724.87,0.00012854,2]
[335970274,1724646654690,-500.0,0.00012854,2]
[335970275,1724646654699,-500.0,0.00012854,2]
[335970276,1724646654708,-6773.47,0.00012854,2]
[335970277,1724646654717,-500.0,0.00012854,2]
[335970278,1724646654728,-15530.2007486,0.00012854,2]
[335970279,1724646655606,-520.24760478,0.00012022,2]
[335970280,1724646655627,-149.18239522,0.00012022,2]
[335970281,1724646655636,-570.47939438,0.00012032,2]
[335970282,1724646656324,-2127.26060562,0.00012032,2]
[335970283,1724646656334,-500.0,0.00012032,2]
[335970284,1724646656345,-883.66,0.00012043,2]
[335970285,1724646656355,-602.86484834,0.00012296,2]
[335970286,1724646657095,-500.0,0.00012022,2]
[335970287,1724646657105,-109.51885624,0.00012032,2]
[335970288,1724646657500,-390.48114376,0.00012032,2]
[335970289,1724646657509,-500.0,0.00012032,2]
[335970290,1724646657519,-500.0,0.00012033,2]
[335970291,1724646657529,-500.0,0.00012043,2]
[335970292,1724646657538,-500.0,0.00012043,2]
[335970293,1724646657548,-351.62040845,0.00012043,2]
[335970294,1724646657557,-66.56515166,0.00012296,2]
[335970295,1724646657568,-500.0,0.00012296,2]
[335970296,1724646657577,-2697.74,0.00012306,2]
[335970297,1724646657587,-500.0,0.00012306,2]
[335970298,1724646657599,-500.0,0.00012306,2]
[335970299,1724646657617,-500.0,0.00012306,2]
[335970300,1724646657627,-500.0,0.00012307,2]
[335970301,1724646657636,-883.66,0.00012317,2]
[335970302,1724646657646,-500.0,0.00012317,2]
[335970303,1724646657661,-500.0,0.00012317,2]
[335970304,1724646657670,-669.43,0.0001257,2]
[335970305,1724646657680,-500.0,0.0001257,2]
[335970306,1724646657689,-349.28588598,0.00012573,2]
[335970307,1724646657699,-2697.74,0.0001258,2]
[335970308,1724646657709,-500.0,0.0001258,2]
[335970309,1724646657718,-266.68,0.0001258,2]
[335970310,1724646657728,-883.66,0.00012591,2]
[335970311,1724646657740,-500.0,0.00012591,2]
[335970312,1724646657749,-500.0,0.00012591,2]
[335970313,1724646657758,-669.43,0.00012844,2]
[335970314,1724646657768,-11442.65303575,0.00012854,2]
[335970323,1724646798081,9666.3354033,0.00011999,2]
[335970325,1724646989052,296.57,0.00010959,2]
[335970326,1724646999589,921.19,0.00010959,2]
[335970328,1724647010330,767.65,0.00010959,2]
[335970330,1724647021457,639.71,0.00010959,2]
[335970331,1724647032001,533.09,0.00010959,2]
[335970332,1724647042544,444.25,0.00010959,2]
[335970334,1724647053320,370.2,0.00010959,2]
[335970335,1724647063755,154.88848348,0.00010959,2]
[335970336,1724647063893,308.5,0.00010959,2]
[335970337,1724647070858,156.4418995,0.00010959,2]
[335970338,1724647071103,281.57328079,0.00010959,2]
[335970339,1724647074427,257.09,0.00010959,2]
[335970340,1724647078528,155.01555419,0.00010959,2]
[335970341,1724647082652,1672.17781827,0.00010959,2]
[335970342,1724647084953,214.24,0.00010959,2]
[335970343,1724647095483,178.53,0.00010959,2]
[335970344,1724647105995,892.69,0.00010959,2]
[335970345,1724647106083,174.85021076,0.00011999,2]
[335970346,1724647109791,14515.68400277,0.00010959,2]
[335970348,1724647201817,14096.29301779,0.00010959,2]
[335970349,1724647202850,247.91456627,0.00011999,2]
[335970350,1724647239325,729.31646428,0.00011999,2]
[335970351,1724647244376,780.60811079,0.00011999,2]
[335970353,1724647252610,573.76228338,0.00011943,2]
[335970354,1724647263939,154.74467129,0.00011999,2]
[335970355,1724647298303,569.97573911,0.00011999,2]
[335970358,1724647337669,331.05026361,0.00011999,2]
[335970359,1724647348332,2379.07435713,0.00011999,2]
[335970362,1724647373556,165.921457,0.00011016,2]
[335970363,1724647373761,165.921457,0.00011026,2]
[335970364,1724647374039,165.921457,0.00011035,2]
[335970365,1724647374264,165.921457,0.00011044,2]
[335970366,1724647374488,165.921457,0.00011053,2]
[335970367,1724647374713,165.921457,0.00011062,2]
[335970368,1724647374935,165.921457,0.00011072,2]
[335970369,1724647382448,1767.29008818,0.00011999,2]
[335970370,1724647422150,192.332808,0.00011096,2]
[335970371,1724647422387,192.332808,0.00011385,2]
[335970372,1724647422604,192.332808,0.00011675,2]
[335970375,1724647558204,1796.16609369,0.00011911,2]
[335970376,1724647560148,1796.16609366,0.00011914,2]
[335970377,1724647560829,300.0,0.00012009,2]
[335970378,1724647562153,1796.16609366,0.00011916,2]
[335970379,1724647562506,300.0,0.00012009,2]
[335970380,1724647564192,1796.16609366,0.00011919,2]
[335970381,1724647566116,1796.16609366,0.00011921,2]
[335970384,1724647621025,300.0,0.00012009,2]
[335970385,1724647622847,300.0,0.00012009,2]
[335970388,1724647647927,634.37838453,0.00011921,2]
[335970390,1724647669558,7983.51079151,0.00011999,2]
[335970391,1724647680961,300.0,0.00012009,2]
[335970392,1724647682974,300.0,0.00012009,2]
[335970393,1724647690995,424.04701492,0.00011999,2]
[335970394,1724647694130,204630.006674,0.00012001,2]
[335970404,1724647707111,200.4444051,0.00011999,2]
[335970405,1724647717071,500.0,0.00012009,2]
[335970415,1724647731637,500.0,0.00012009,2]
[335970417,1724647737313,8535.84,0.00012009,2]
[335970418,1724647740843,300.0,0.00012009,2]
[335970419,1724647743048,300.0,0.00012009,2]
[335970420,1724647750782,500.0,0.00012009,2]
[335970423,1724647754476,384.02617366,0.00011922,2]
[335970424,1724647764420,760.01,0.00012009,2]
[335970425,1724647767677,181.4294974,0.00011999,2]
[335970426,1724647773873,500.0,0.00012009,2]
[335970430,1724647788947,637.72,0.00012009,2]
[335970433,1724647800824,300.0,0.00012009,2]
[335970435,1724647803245,300.0,0.00012009,2]
[335970436,1724647810330,500.0,0.00012009,2]
[335970437,1724647812278,998.60195726,0.00012009,2]
[335970438,1724647814217,582.63,0.00012009,2]
[335970439,1724647821018,720.95,0.00012009,2]
[335970441,1724647830885,13489.45,0.00012009,2]
[335970880,1724647837893,-500.0,0.0001201,2]
[335970883,1724647837903,-762.65,0.0001201,2]
[335970885,1724647837913,-642.64,0.0001201,2]
[335970887,1724647837922,-500.0,0.0001201,2]
[335970889,1724647837932,-500.0,0.0001201,2]
[335970891,1724647837942,-500.0,0.0001201,2]
[335970893,1724647837952,-500.0,0.0001201,2]
[335970895,1724647837962,-500.0,0.0001201,2]
[335970897,1724647837971,-500.0,0.0001201,2]
[335970899,1724647837986,-500.0,0.0001201,2]
[335970901,1724647837996,-500.0,0.0001201,2]
[335970903,1724647838010,-500.0,0.0001201,2]
[335970905,1724647838020,-500.0,0.0001201,2]
[335970907,1724647838030,-673.2,0.0001201,2]
[335970909,1724647838040,-500.0,0.0001201,2]
[335970912,1724647838051,-2587.11,0.0001201,2]
[335970914,1724647838061,-500.0,0.0001201,2]
[335970916,1724647838070,-657.77,0.0001201,2]
[335970918,1724647838083,-500.0,0.0001201,2]
[335970920,1724647838093,-3415.97,0.0001201,2]
[335970922,1724647838103,-500.0,0.0001201,2]
[335970924,1724647838113,-500.0,0.0001201,2]
[335970926,1724647838122,-500.0,0.0001201,2]
[335970928,1724647838132,-500.71222381,0.0001201,2]
[335970930,1724647838142,-500.0,0.0001201,2]
[335970932,1724647838151,-500.0,0.0001201,2]
[335970934,1724647838161,-500.0,0.0001201,2]
[335970936,1724647838172,-728.85,0.0001201,2]
[335970938,1724647838182,-500.0,0.0001201,2]
[335970941,1724647838192,-500.0,0.0001201,2]
[335970943,1724647838203,-751.26,0.0001201,2]
[335970945,1724647838213,-500.0,0.0001201,2]
[335970947,1724647838222,-500.0,0.0001201,2]
[335970949,1724647838235,-550.62,0.0001201,2]
[335970951,1724647838245,-619.95,0.0001201,2]
[335970953,1724647838254,-500.0,0.0001201,2]
[335970955,1724647838263,-500.0,0.0001201,2]
[335970957,1724647838272,-500.0,0.0001201,2]
[335970959,1724647838282,-834.9,0.0001201,2]
[335970961,1724647838292,-500.0,0.0001201,2]
[335970963,1724647838301,-500.0,0.0001201,2]
[335970965,1724647838311,-501.27599145,0.0001201,2]
[335970967,1724647838320,-567.36,0.0001201,2]
[335970969,1724647838331,-506.53764719,0.0001201,2]
[335970971,1724647838343,-501.6115952,0.0001201,2]
[335970974,1724647838355,-500.0,0.0001201,2]
[335970976,1724647838367,-500.0,0.0001201,2]
[335970978,1724647838378,-570.74,0.0001201,2]
[335970980,1724647838388,-500.97852574,0.0001201,2]
[335970982,1724647838397,-702.61,0.0001201,2]
[335970984,1724647838407,-500.0,0.0001201,2]
[335970986,1724647838416,-502.47773339,0.0001201,2]
[335970989,1724647838426,-644.71,0.0001201,2]
[335970991,1724647838435,-500.0,0.0001201,2]
[335970993,1724647838445,-1583.27,0.0001201,2]
[335970995,1724647838454,-516.27,0.0001201,2]
[335970997,1724647838463,-500.0,0.0001201,2]
[335970999,1724647838472,-500.0,0.0001201,2]
[335971001,1724647838487,-500.0,0.0001201,2]
[335971003,1724647838496,-500.0,0.0001201,2]
[335971005,1724647838506,-690.82,0.0001201,2]
[335971007,1724647838515,-1017.09,0.0001201,2]
[335971009,1724647838525,-500.0,0.0001201,2]
[335971011,1724647838535,-500.0,0.0001201,2]
[335971013,1724647838544,-902.13,0.0001201,2]
[335971015,1724647838554,-500.0,0.0001201,2]
[335971017,1724647838563,-11914.79,0.0001201,2]
[335971019,1724647838573,-500.0,0.0001201,2]
[335971021,1724647838583,-500.0,0.0001201,2]
[335971024,1724647838592,-620.38,0.0001201,2]
[335971026,1724647838602,-500.0,0.0001201,2]
[335971028,1724647838611,-670.36,0.0001201,2]
[335971030,1724647838621,-1049.72,0.0001201,2]
[335971032,1724647838631,-500.0,0.0001201,2]
[335971034,1724647838640,-505.2,0.0001201,2]
[335971036,1724647838649,-500.0,0.0001201,2]
[335971038,1724647838659,-500.0,0.0001201,2]
[335971040,1724647838669,-500.0,0.0001201,2]
[335971042,1724647838679,-3226.48,0.0001201,2]
[335971044,1724647838689,-501.87301085,0.0001201,2]
[335971046,1724647838699,-500.0,0.0001201,2]
[335971048,1724647838709,-500.0,0.0001201,2]
[335971050,1724647838719,-500.0,0.0001201,2]
[335971052,1724647838730,-500.0,0.0001201,2]
[335971054,1724647838740,-500.0,0.0001201,2]
[335971056,1724647838750,-500.0,0.0001201,2]
[335971058,1724647838760,-769.76,0.0001201,2]
[335971061,1724647838770,-500.0,0.0001201,2]
[335971063,1724647838780,-500.0,0.0001201,2]
[335971065,1724647838789,-500.0,0.0001201,2]
[335971067,1724647838799,-486.52502966,0.0001201,2]
[335971068,1724647838808,-500.0,0.0001201,2]
[335971070,1724647838817,-500.0,0.0001201,2]
[335971073,1724647838828,-665.98,0.0001201,2]
[335971075,1724647838838,-500.0,0.0001201,2]
[335971077,1724647838848,-500.0,0.0001201,2]
[335971079,1724647838858,-397.34780111,0.00012011,2]
[335971081,1724647838868,-981.99,0.00012011,2]
[335971083,1724647838878,-500.0,0.00012011,2]
[335971085,1724647838887,-500.0,0.00012011,2]
[335971087,1724647838896,-500.0,0.00012011,2]
[335971089,1724647838906,-705.8,0.00012011,2]
[335971091,1724647838917,-500.0,0.00012011,2]
[335971093,1724647838926,-510.71,0.00012011,2]
[335971095,1724647838936,-500.0,0.00012011,2]
[335971097,1724647838946,-500.0,0.00012011,2]
[335971099,1724647838958,-500.0,0.00012011,2]
[335971101,1724647838969,-500.0,0.00012011,2]
[335971103,1724647838980,-500.0,0.00012011,2]
[335971106,1724647838990,-1002.64,0.00012011,2]
[335971108,1724647839004,-1058.37,0.00012011,2]
[335971110,1724647839013,-500.0,0.00012011,2]
[335971112,1724647839023,-678.13,0.00012011,2]
[335971114,1724647839033,-858.49,0.00012011,2]
[335971116,1724647839045,-500.0,0.00012011,2]
[335971118,1724647839055,-862.72,0.00012011,2]
[335971120,1724647839064,-830.15,0.00012011,2]